fUSD/lending_fUSD_20260702
["ID","MTS","AMOUNT","RATE_DAILY","PERIOD"]
[426909400,1783005039000,-151.0,0.00025,2]
[426909373,1783005039000,-4678.84,0.00024543,2]
[426909395,1783005039000,-52771.1530595,0.00024918,2]
[426909401,1783005039000,-222.0,0.00025,2]
[426909392,1783005039000,-4807.6127442,0.00024914,2]
[426909398,1783005039000,-152.03629581,0.00024967,2]
[426909394,1783005039000,-240.565491,0.00024918,2]
[426909396,1783005039000,-699.4687736,0.0002492,2]
[426909380,1783005039000,-1000.0,0.00024658,2]
[426909374,1783005039000,-75852.09836261,0.00024544,2]
[426909344,1783005039000,-471.44759441,0.00024147,7]
[426909368,1783005039000,-17295.82145346,0.00024318,2]
[426909391,1783005039000,-225.51,0.00024909,2]
[426909314,1783005039000,-178.64523227,0.00023647,7]
[426909322,1783005039000,-456.62805893,0.00023925,2]
[426909323,1783005039000,-151.0,0.00024,2]
[426909316,1783005039000,-1743.98335304,0.00023667,2]
[426909318,1783005039000,-503.0,0.00023808,2]
[426909325,1783005039000,-222.0,0.00024,2]
[426909319,1783005039000,-170.69,0.00023843,2]
[426909327,1783005039000,-202.0,0.00024,2]
[426909331,1783005039000,-157.0,0.00024,2]
[426909329,1783005039000,-163.0,0.00024,2]
[426909334,1783005039000,-155.0,0.00024,2]
[426909333,1783005039000,-1743.98335304,0.00024,2]
[426909335,1783005039000,-173.0,0.00024,2]
[426909336,1783005039000,-215.0,0.00024,2]
[426909340,1783005039000,-152.0,0.00024029,3]
[426909338,1783005039000,-417.0,0.00024,2]
[426909339,1783005039000,-166.93,0.00024001,2]
[426909337,1783005039000,-150.0,0.00024,2]
[426909353,1783005039000,-385.56,0.00024174,2]
[426909355,1783005039000,-965.07,0.00024174,2]
[426909346,1783005039000,-831.689439,0.00024147,7]
[426909348,1783005039000,-3717.41,0.00024158,2]
[426909342,1783005039000,-500.0,0.00024137,2]
[426909341,1783005039000,-150.0,0.000241,2]
[426909350,1783005039000,-1852.42,0.00024171,2]
[426909357,1783005039000,-8928.12,0.00024174,2]
[426909367,1783005039000,-150.0,0.000243,2]
[426909372,1783005039000,-150.0,0.000245,2]
[426909369,1783005039000,-1743.98335304,0.00024333,2]
[426909399,1783005039000,-1056.14,0.00024986,2]
[426909446,1783005039000,-225.52164719,0.00026141,2]
[426909397,1783005039000,-31213.285644,0.0002492,2]
[426909439,1783005039000,-156.8838349,0.00026141,2]
[426909430,1783005039000,-215.0,0.00026,2]
[426909436,1783005039000,-213.85063123,0.00026141,2]
[426909431,1783005039000,-417.0,0.00026,2]
[426909440,1783005039000,-154.76726024,0.00026141,2]
[426909433,1783005039000,-683.0,0.0002606,5]
[426909442,1783005039000,-319.37094487,0.00026141,2]
[426909452,1783005039000,-199.76834349,0.00026141,2]
[426909453,1783005039000,-220.0051242,0.00026141,2]
[426909441,1783005039000,-158.95929841,0.00026141,2]
[426909464,1783005039000,-152.0,0.00026224,4]
[426909444,1783005039000,-221.07103532,0.00026141,2]
[426909443,1783005039000,-391.23544464,0.00026141,2]
[426909445,1783005039000,-176.73433264,0.00026141,2]
[426909450,1783005039000,-236.8548156,0.00026141,2]
[426909447,1783005039000,-165.02576671,0.00026141,2]
[426909449,1783005039000,-155.20273082,0.00026141,2]
[426909448,1783005039000,-327.49017226,0.00026141,2]
[426909451,1783005039000,-169.23977624,0.00026141,2]
[426909454,1783005039000,-314.00049378,0.00026141,2]
[426909459,1783005039000,-183.98980281,0.00026171,2]
[426909460,1783005039000,-210.5865288,0.00026171,2]
[426909455,1783005039000,-379.29678483,0.00026154,2]
[426909456,1783005039000,-150.83444869,0.00026158,2]
[426909458,1783005039000,-204.04,0.0002617,30]
[426909463,1783005039000,-687.0,0.00026194,5]
[426909461,1783005039000,-179.27104601,0.00026171,2]
[426909393,1783005039000,-177.62567601,0.00024917,2]
[426909462,1783005039000,-355.25135201,0.00026171,2]
[426909438,1783005039000,-194.25851253,0.00026141,2]
[426909432,1783005039000,-152.0,0.00026031,5]
[426909457,1783005039000,-171.47811604,0.00026158,2]
[426909437,1783005039000,-155.54263802,0.00026141,2]
[426909429,1783005039000,-173.0,0.00026,2]
[426909406,1783005039000,-1743.98335304,0.00025,2]
[426909404,1783005039000,-39952.94,0.00025,2]
[426909403,1783005039000,-157.0,0.00025,2]
[426909408,1783005039000,-173.0,0.00025,2]
[426909405,1783005039000,-50000.0,0.00025,2]
[426909407,1783005039000,-155.0,0.00025,2]
[426909414,1783005039000,-150.0,0.000255,2]
[426909410,1783005039000,-417.0,0.00025,2]
[426909409,1783005039000,-215.0,0.00025,2]
[426909413,1783005039000,-1743.98335304,0.00025333,2]
[426909411,1783005039000,-206.0,0.00025073,2]
[426909412,1783005039000,-191.258687,0.00025134,14]
[426909416,1783005039000,-1683.3861,0.00025647,14]
[426909402,1783005039000,-202.0,0.00025,2]
[426909427,1783005039000,-1743.98335304,0.00026,2]
[426909435,1783005039000,-196.32418069,0.00026141,2]
[426909434,1783005039000,-678.0,0.00026119,5]
[426909428,1783005039000,-155.0,0.00026,2]
[426909424,1783005039000,-202.0,0.00026,2]
[426909426,1783005039000,-38455.15,0.00026,2]
[426909419,1783005039000,-150.0,0.00025675,7]
[426909422,1783005039000,-151.0,0.00026,2]
[426909423,1783005039000,-222.0,0.00026,2]
[426909425,1783005039000,-157.0,0.00026,2]
[426909420,1783005039000,-150.0,0.000259,2]
[426909417,1783005039000,-500.0,0.00025665,2]
[426909421,1783005039000,-166.93,0.00025981,2]
[426909415,1783005039000,-17295.82145346,0.00025544,2]
[426909418,1783005039000,-1743.98335304,0.00025667,2]
[426909501,1783005040000,-427.70126246,0.00026977,2]
[426909509,1783005040000,-254.23400554,0.00026977,2]
[426909503,1783005040000,-311.08527604,0.00026977,2]
[426909510,1783005040000,-281.27161603,0.00026977,2]
[426909508,1783005040000,-159.77460003,0.00026977,2]
[426909497,1783005040000,-245.99702431,0.00026977,2]
[426909507,1783005040000,-313.76766979,0.00026977,2]
[426909505,1783005040000,-544.35331149,0.00026977,2]
[426909504,1783005040000,-388.51702506,0.00026977,2]
[426909499,1783005040000,-219.561957,0.00026977,2]
[426909495,1783005040000,-392.64836139,0.00026977,2]
[426909502,1783005040000,-230.10383159,0.00026977,2]
[426909506,1783005040000,-224.03841985,0.00026977,2]
[426909514,1783005040000,-479.05641731,0.00026977,2]
[426909513,1783005040000,-317.91859682,0.00026977,2]
[426909519,1783005040000,-451.04329437,0.00026977,2]
[426909515,1783005040000,-586.85316696,0.00026977,2]
[426909518,1783005040000,-353.46866528,0.00026977,2]
[426909512,1783005040000,-309.53452048,0.00026977,2]
[426909516,1783005040000,-442.14207063,0.00026977,2]
[426909525,1783005040000,-338.47955248,0.00026977,2]
[426909520,1783005040000,-330.05153342,0.00026977,2]
[426909521,1783005040000,-491.23525839,0.00026977,2]
[426909523,1783005040000,-181.8222043,0.00026977,2]
[426909524,1783005040000,-473.7096312,0.00026977,2]
[426909522,1783005040000,-310.40546164,0.00026977,2]
[426909498,1783005040000,-169.74676424,0.00026977,2]
[426909511,1783005040000,-221.88709463,0.00026977,2]
[426909493,1783005040000,-1000.0,0.00026976,2]
[426909480,1783005040000,-2000.0,0.000266,2]
[426909496,1783005040000,-252.88984705,0.00026977,2]
[426909465,1783005040000,-220.83058827,0.00026224,30]
[426909466,1783005040000,-664.0,0.00026293,5]
[426909468,1783005040000,-170.84,0.00026443,2]
[426909479,1783005040000,-33361.7046,0.000266,2]
[426909478,1783005040000,-680.0,0.00026585,5]
[426909474,1783005040000,-1874.93033223,0.000265,2]
[426909471,1783005040000,-1843.30417601,0.000265,2]
[426909472,1783005040000,-10591.46972121,0.000265,2]
[426909467,1783005040000,-677.0,0.00026418,5]
[426909469,1783005040000,-216.6671885,0.00026483,2]
[426909470,1783005040000,-1405.30847266,0.000265,2]
[426909473,1783005040000,-189.77159536,0.000265,2]
[426909477,1783005040000,-160.0,0.00026563,2]
[426909475,1783005040000,-282.0,0.00026521,2]
[426909476,1783005040000,-216.69616408,0.00026563,2]
[426909482,1783005040000,-1405.30847266,0.000267,2]
[426909491,1783005040000,-500.0,0.00026976,2]
[426909483,1783005040000,-1843.30417601,0.000267,2]
[426909486,1783005040000,-686.0,0.00026766,5]
[426909484,1783005040000,-10591.46972121,0.000267,2]
[426909487,1783005040000,-17295.82145346,0.0002677,2]
[426909485,1783005040000,-1874.93033223,0.000267,2]
[426909481,1783005040000,-313.8,0.00026601,2]
[426909488,1783005040000,-8014.6026,0.000268,30]
[426909492,1783005040000,-225.53895044,0.00026976,2]
[426909489,1783005040000,-170.69,0.00026824,2]
[426909490,1783005040000,-500.0,0.000269,9]
[426909494,1783005040000,-500.0,0.00026976,2]
[426909528,1783005040000,-204.12687834,0.00026977,2]
[426909526,1783005040000,-399.53668697,0.00026977,2]
[426909527,1783005040000,-440.01024841,0.00026977,2]
[426909564,1783005040000,-190.74835733,0.00027007,2]
[426909552,1783005040000,-164.61468301,0.00027,2]
[426909561,1783005040000,-188.51710699,0.00027007,2]
[426909565,1783005040000,-421.1730576,0.00027007,2]
[426909567,1783005040000,-208.27691093,0.00027007,2]
[426909577,1783005040000,-500.0,0.00027209,2]
[426909578,1783005040000,-577.72670713,0.00027299,2]
[426909579,1783005040000,-500.0,0.00027299,2]
[426909570,1783005040000,-1050.0,0.00027065,2]
[426909568,1783005040000,-358.54209203,0.00027007,2]
[426909573,1783005040000,-508.0,0.00027137,2]
[426909576,1783005040000,-500.0,0.00027209,2]
[426909575,1783005040000,-174.92,0.00027209,2]
[426909559,1783005040000,-335.89223833,0.00027007,2]
[426909566,1783005040000,-174.39670117,0.00027007,2]
[426909574,1783005040000,-152.03629579,0.00027207,2]
[426909569,1783005040000,-532.87702802,0.00027007,2]
[426909580,1783005040000,-1405.30847266,0.000273,2]
[426909583,1783005040000,-1874.93033223,0.000273,2]
[426909587,1783005040000,-1500.0,0.00027397,2]
[426909582,1783005040000,-10591.46972121,0.000273,2]
[426909581,1783005040000,-1843.30417601,0.000273,2]
[426909586,1783005040000,-500.0,0.00027397,15]
[426909584,1783005040000,-249.0,0.00027383,2]
[426909585,1783005040000,-235.51206962,0.00027397,2]
[426909589,1783005040000,-4551.78,0.00027397,10]
[426909588,1783005040000,-300.0,0.00027397,2]
[426909532,1783005040000,-256.33183373,0.00026994,2]
[426909572,1783005040000,-195.63,0.000271,14]
[426909558,1783005040000,-188.09745689,0.00027007,2]
[426909571,1783005040000,-300.0,0.00027065,30]
[426909563,1783005040000,-153.37221337,0.00027007,2]
[426909530,1783005040000,-187.24489941,0.0002699,2]
[426909557,1783005040000,-248.71280734,0.00027007,2]
[426909537,1783005040000,-296.98975388,0.00026994,2]
[426909533,1783005040000,-301.66889737,0.00026994,2]
[426909529,1783005040000,-471.00074067,0.00026977,2]
[426909531,1783005040000,-568.94517724,0.0002699,2]
[426909535,1783005040000,-237.63655724,0.00026994,2]
[426909534,1783005040000,-245.05620974,0.00026994,2]
[426909536,1783005040000,-295.54466825,0.00026994,2]
[426909540,1783005040000,-214.63630445,0.00026994,2]
[426909551,1783005040000,-30763.92,0.00027,2]
[426909539,1783005040000,-246.47167041,0.00026994,2]
[426909550,1783005040000,-157.0,0.00027,2]
[426909542,1783005040000,-342.95623208,0.00026994,2]
[426909538,1783005040000,-281.74636299,0.00026994,2]
[426909562,1783005040000,-367.97960561,0.00027007,2]
[426909556,1783005040000,-510.48722197,0.00027004,2]
[426909541,1783005040000,-189.24084267,0.00026994,2]
[426909560,1783005040000,-223.93970774,0.00027007,2]
[426909555,1783005040000,-417.0,0.00027,2]
[426909554,1783005040000,-215.0,0.00027,2]
[426909544,1783005040000,-1843.30417601,0.00027,2]
[426909553,1783005040000,-173.0,0.00027,2]
[426909546,1783005040000,-151.0,0.00027,2]
[426909545,1783005040000,-10591.46972121,0.00027,2]
[426909547,1783005040000,-1874.93033223,0.00027,2]
[426909548,1783005040000,-222.0,0.00027,2]
[426909549,1783005040000,-202.0,0.00027,2]
[426909543,1783005040000,-1405.30847266,0.00027,2]
[426909656,1783005041000,-228.34329624,0.00027551,2]
[426909623,1783005041000,-676.56494156,0.00027533,2]
[426909658,1783005041000,-490.11241949,0.00027551,2]
[426909646,1783005041000,-758.59356966,0.00027547,2]
[426909626,1783005041000,-654.98034452,0.00027533,2]
[426909639,1783005041000,-408.25375667,0.00027533,2]
[426909636,1783005041000,-599.30503046,0.00027533,2]
[426909644,1783005041000,-374.48979882,0.00027547,2]
[426909621,1783005041000,-663.21310595,0.00027533,2]
[426909634,1783005041000,-507.71932872,0.00027533,2]
[426909632,1783005041000,-710.5644468,0.00027533,2]
[426909628,1783005041000,-465.60819246,0.00027533,2]
[426909654,1783005041000,-203.55116765,0.00027551,2]
[426909630,1783005041000,-389.19750687,0.00027533,2]
[426909659,1783005041000,-684.54207568,0.00027551,2]
[426909678,1783005041000,-162.02882278,0.00027551,2]
[426909663,1783005041000,-475.27311449,0.00027551,2]
[426909650,1783005041000,-512.66366747,0.00027551,2]
[426909661,1783005041000,-432.11591781,0.00027551,2]
[426909648,1783005041000,-357.72,0.00027551,30]
[426909665,1783005041000,-410.86017061,0.00027551,2]
[426909667,1783005041000,-153.44759845,0.00027551,2]
[426909669,1783005041000,-239.94227655,0.00027551,2]
[426909671,1783005041000,-591.08933651,0.00027551,2]
[426909675,1783005041000,-563.49272597,0.00027551,2]
[426909673,1783005041000,-593.97950776,0.00027551,2]
[426909680,1783005041000,-378.48168533,0.00027551,2]
[426909679,1783005041000,-429.2726089,0.00027551,2]
[426909691,1783005041000,-376.19491378,0.00027565,2]
[426909624,1783005041000,-495.07730013,0.00027533,2]
[426909652,1783005041000,-452.50334606,0.00027551,2]
[426909641,1783005041000,-628.00098756,0.00027533,2]
[426909592,1783005041000,-3160.96,0.00027397,10]
[426909622,1783005041000,-530.20299792,0.00027533,2]
[426909676,1783005041000,-492.94334082,0.00027551,2]
[426909590,1783005041000,-3793.15,0.00027397,10]
[426909591,1783005041000,-3160.96,0.00027397,10]
[426909594,1783005041000,-342.27103784,0.00027397,2]
[426909604,1783005041000,-439.12391399,0.00027533,2]
[426909605,1783005041000,-641.5518937,0.00027533,2]
[426909596,1783005041000,-205.43008531,0.00027397,2]
[426909606,1783005041000,-466.62791406,0.00027533,2]
[426909593,1783005041000,-171.13551892,0.00027397,2]
[426909595,1783005041000,-513.40655676,0.00027397,2]
[426909600,1783005041000,-588.97254208,0.00027533,2]
[426909599,1783005041000,-500.0,0.000275,7]
[426909597,1783005041000,-2988.1,0.00027397,2]
[426909602,1783005041000,-491.99404862,0.00027533,2]
[426909601,1783005041000,-505.77969411,0.00027533,2]
[426909598,1783005041000,-281.27,0.000274,2]
[426909603,1783005041000,-339.49352847,0.00027533,2]
[426909617,1783005041000,-464.30178072,0.00027533,2]
[426909620,1783005041000,-782.47088928,0.00027533,2]
[426909616,1783005041000,-562.54323206,0.00027533,2]
[426909614,1783005041000,-319.54920007,0.00027533,2]
[426909615,1783005041000,-508.46801107,0.00027533,2]
[426909611,1783005041000,-272.17665575,0.00027533,2]
[426909638,1783005041000,-660.01537261,0.00027533,2]
[426909610,1783005041000,-582.77553759,0.00027533,2]
[426909612,1783005041000,-448.07683969,0.00027533,2]
[426909619,1783005041000,-638.74188975,0.00027533,2]
[426909609,1783005041000,-212.93692286,0.00027533,2]
[426909607,1783005041000,-239.58861894,0.00027533,2]
[426909618,1783005041000,-476.87789523,0.00027533,2]
[426909608,1783005041000,-249.79238317,0.00027533,2]
[426909613,1783005041000,-470.65150469,0.00027533,2]
[426909682,1783005041000,-514.43434812,0.00027551,2]
[426909790,1783005041000,-417.0,0.00028,2]
[426909693,1783005041000,-230.07891307,0.00027565,2]
[426909761,1783005041000,-232.53285927,0.00027986,7]
[426909767,1783005041000,-295.1902549,0.00027986,7]
[426909755,1783005041000,-156.63953301,0.00027986,7]
[426909753,1783005041000,-259.72419602,0.00027986,7]
[426909769,1783005041000,-167.1866142,0.00027986,7]
[426909752,1783005041000,-166.93,0.00027962,2]
[426909757,1783005041000,-174.20003045,0.00027986,7]
[426909771,1783005041000,-198.98671775,0.00027986,7]
[426909772,1783005041000,-150.0,0.00027986,7]
[426909774,1783005041000,-17295.82145346,0.00027996,2]
[426909776,1783005041000,-162.0,0.00028,2]
[426909780,1783005041000,-202.0,0.00028,2]
[426909786,1783005041000,-173.0,0.00028,2]
[426909778,1783005041000,-222.0,0.00028,2]
[426909763,1783005041000,-154.32701166,0.00027986,7]
[426909812,1783005041000,-157.07155604,0.000284,2]
[426909794,1783005041000,-785.00123445,0.0002809,2]
[426909782,1783005041000,-169.0,0.00028,2]
[426909792,1783005041000,-978.0886116,0.0002809,2]
[426909788,1783005041000,-215.0,0.00028,2]
[426909797,1783005041000,-1843.30417601,0.000281,2]
[426909798,1783005041000,-10591.46972121,0.000281,2]
[426909800,1783005041000,-948.24196207,0.00028104,2]
[426909802,1783005041000,-276.91289056,0.00028215,2]
[426909804,1783005041000,-1000.0,0.00028315,2]
[426909806,1783005041000,-1000.0,0.00028358,2]
[426909816,1783005041000,-157.07155603,0.000284,2]
[426909810,1783005041000,-10591.46972121,0.000284,2]
[426909814,1783005041000,-157.07155603,0.000284,2]
[426909808,1783005041000,-1843.30417601,0.000284,2]
[426909784,1783005041000,-30763.92,0.00028,2]
[426909765,1783005041000,-157.0980069,0.00027986,7]
[426909687,1783005041000,-199.67808095,0.00027565,2]
[426909750,1783005041000,-473.0,0.00027929,5]
[426909759,1783005041000,-162.52780859,0.00027986,7]
[426909684,1783005041000,-244.73940062,0.00027551,2]
[426909689,1783005041000,-497.42561469,0.00027565,2]
[426909695,1783005041000,-247.59114268,0.00027565,2]
[426909697,1783005041000,-447.87941547,0.00027565,2]
[426909701,1783005041000,-178.32338398,0.00027565,2]
[426909703,1783005041000,-415.2544763,0.00027565,2]
[426909699,1783005041000,-198.08109889,0.00027565,2]
[426909715,1783005041000,-218.66398581,0.00027565,2]
[426909716,1783005041000,-211.39202586,0.00027565,2]
[426909705,1783005041000,-377.03421397,0.00027565,2]
[426909709,1783005041000,-306.89519691,0.00027565,2]
[426909713,1783005041000,-290.57005018,0.00027565,2]
[426909718,1783005041000,-201.64576125,0.00027565,2]
[426909711,1783005041000,-198.16443608,0.00027565,2]
[426909685,1783005041000,-156.43641278,0.00027565,2]
[426909720,1783005041000,-182.53923308,0.00027565,2]
[426909707,1783005041000,-165.9380636,0.00027565,2]
[426909748,1783005041000,-5000.0,0.00027855,7]
[426909734,1783005041000,-710.50270402,0.00027565,2]
[426909740,1783005041000,-10591.46972121,0.000276,2]
[426909736,1783005041000,-1405.30847266,0.000276,2]
[426909744,1783005041000,-1843.30417601,0.000278,2]
[426909738,1783005041000,-1843.30417601,0.000276,2]
[426909730,1783005041000,-631.7595864,0.00027565,2]
[426909722,1783005041000,-551.96940842,0.00027565,2]
[426909742,1783005041000,-1874.93033223,0.000276,2]
[426909724,1783005041000,-306.74442674,0.00027565,2]
[426909746,1783005041000,-10591.46972121,0.000278,2]
[426909728,1783005041000,-381.49671466,0.00027565,2]
[426909726,1783005041000,-167.94611917,0.00027565,2]
[426909732,1783005041000,-537.81313804,0.00027565,2]
[426909909,1783005042000,-1000.0,0.00028957,2]
[426909883,1783005042000,-1000.0,0.00028829,2]
[426909879,1783005042000,-1000.0,0.00028786,2]
[426909895,1783005042000,-1261.0,0.00028904,2]
[426909891,1783005042000,-1100.0,0.000289,10]
[426909913,1783005042000,-2000.0,0.00028969,6]
[426909901,1783005042000,-942.00148133,0.00028926,2]
[426909917,1783005042000,-151.0,0.00028981,2]
[426909911,1783005042000,-457.0,0.00028964,10]
[426909905,1783005042000,-281.0,0.00028932,2]
[426909885,1783005042000,-1000.0,0.00028872,2]
[426909873,1783005042000,-1000.0,0.00028767,10]
[426909921,1783005042000,-669.09185747,0.00029,2]
[426909907,1783005042000,-1137.89035449,0.00028939,2]
[426909915,1783005042000,-472.51497698,0.00028981,2]
[426909899,1783005042000,-1000.0,0.00028914,2]
[426909919,1783005042000,-207.79223642,0.00028981,2]
[426909923,1783005042000,-212.12218535,0.00029,2]
[426909925,1783005042000,-1843.30417601,0.00029,2]
[426909927,1783005042000,-10591.46972121,0.00029,2]
[426909933,1783005042000,-233.0,0.00029,2]
[426909939,1783005042000,-500.0,0.00029,7]
[426909931,1783005042000,-500.0,0.00029,7]
[426909937,1783005042000,-500.0,0.00029,7]
[426909881,1783005042000,-486.56900621,0.00028805,30]
[426909903,1783005042000,-187.0,0.00028932,2]
[426909887,1783005042000,-151.00057088,0.00028874,20]
[426909851,1783005042000,-162.05,0.00028632,30]
[426909893,1783005042000,-2000.0,0.00028902,60]
[426909822,1783005042000,-1000.0,0.00028401,2]
[426909820,1783005042000,-157.07155603,0.000284,2]
[426909818,1783005042000,-157.07155603,0.000284,2]
[426909826,1783005042000,-1000.0,0.00028443,2]
[426909824,1783005042000,-152.0,0.00028418,5]
[426909831,1783005042000,-1000.0,0.00028572,2]
[426909830,1783005042000,-1000.0,0.00028529,2]
[426909839,1783005042000,-160.69,0.0002863,30]
[426909847,1783005042000,-150.59046719,0.0002863,2]
[426909835,1783005042000,-175.52,0.0002863,30]
[426909833,1783005042000,-1000.0,0.00028615,2]
[426909828,1783005042000,-1000.0,0.00028486,2]
[426909837,1783005042000,-160.68,0.0002863,30]
[426909929,1783005042000,-500.0,0.00029,7]
[426909855,1783005042000,-1000.0,0.00028658,2]
[426909853,1783005042000,-1000.0,0.00028658,2]
[426909857,1783005042000,-1000.0,0.00028699,2]
[426909849,1783005042000,-167.68,0.00028632,30]
[426909863,1783005042000,-10591.46972121,0.000287,2]
[426909859,1783005042000,-500.0,0.00028699,7]
[426909869,1783005042000,-1000.0,0.000287,2]
[426909861,1783005042000,-1843.30417601,0.000287,2]
[426909867,1783005042000,-160.0,0.000287,30]
[426909865,1783005042000,-216.69616408,0.000287,30]
[426909871,1783005042000,-1000.0,0.00028743,2]
[426909875,1783005042000,-612.93854249,0.00028767,10]
[426909877,1783005042000,-252.09,0.00028767,2]
[426909889,1783005042000,-508.0,0.00028899,3]
[426909935,1783005042000,-500.0,0.00029,7]
[426909897,1783005042000,-315.40720789,0.00028904,2]
[426909943,1783005042000,-500.0,0.00029,7]
[426909996,1783005042000,-500.0,0.00029195,14]
[426909998,1783005042000,-500.0,0.00029195,60]
[426910003,1783005042000,-2000.0,0.00029195,20]
[426910000,1783005042000,-500.0,0.00029195,60]
[426910013,1783005042000,-173.18,0.00029315,2]
[426910015,1783005042000,-9568.6836764,0.00029362,2]
[426910017,1783005042000,-175.52,0.00029383,7]
[426910019,1783005042000,-160.68,0.00029383,7]
[426910022,1783005042000,-2000.0,0.00029446,23]
[426910024,1783005042000,-152.03629579,0.00029448,2]
[426910028,1783005042000,-207.79223642,0.00029529,2]
[426910032,1783005042000,-280.16107655,0.00029552,14]
[426910011,1783005042000,-10591.46972121,0.000293,2]
[426910042,1783005042000,-280.14,0.00029664,2]
[426910034,1783005042000,-178.47716595,0.00029582,2]
[426910040,1783005042000,-318.45650684,0.00029636,2]
[426910038,1783005042000,-177.09737896,0.00029636,2]
[426910044,1783005042000,-173.18,0.00029726,2]
[426910036,1783005042000,-2000.0,0.00029599,7]
[426910046,1783005042000,-1700.0,0.000298,10]
[426910050,1783005042000,-170.69,0.00029804,2]
[426910048,1783005042000,-472.51497698,0.00029803,2]
[426910052,1783005042000,-350.02,0.00029858,14]
[426910054,1783005042000,-2200.0,0.000299,10]
[426910056,1783005042000,-180.34477182,0.00029939,2]
[426909941,1783005042000,-500.0,0.00029,7]
[426910030,1783005042000,-150.0,0.00029534,2]
[426910007,1783005042000,-17295.82145346,0.00029222,2]
[426910026,1783005042000,-472.51497698,0.00029529,2]
[426910005,1783005042000,-306426.0,0.00029196,20]
[426909945,1783005042000,-500.0,0.00029,7]
[426910009,1783005042000,-472.51497698,0.00029255,2]
[426909957,1783005042000,-500.0,0.00029,7]
[426909964,1783005042000,-500.0,0.00029,7]
[426909959,1783005042000,-500.0,0.00029,7]
[426909947,1783005042000,-500.0,0.00029,7]
[426909961,1783005042000,-500.0,0.00029,7]
[426909965,1783005042000,-500.0,0.00029,7]
[426909951,1783005042000,-500.0,0.00029,7]
[426909968,1783005042000,-1000.0,0.00029,2]
[426909955,1783005042000,-532.11,0.00029,7]
[426909969,1783005042000,-209.0,0.00029,2]
[426909953,1783005042000,-500.0,0.00029,7]
[426909971,1783005042000,-215.97757532,0.00029,7]
[426909949,1783005042000,-500.0,0.00029,7]
[426909975,1783005042000,-154.0,0.00029,4]
[426909994,1783005042000,-2000.0,0.00029142,5]
[426909990,1783005042000,-216.32009814,0.00029036,2]
[426909986,1783005042000,-152.92535472,0.00029009,2]
[426909983,1783005042000,-500.0,0.00029009,2]
[426909982,1783005042000,-426.0,0.00029,2]
[426909984,1783005042000,-500.0,0.00029009,2]
[426909992,1783005042000,-280.45427802,0.00029116,2]
[426909977,1783005042000,-154.0,0.00029,4]
[426909979,1783005042000,-183.0,0.00029,2]
[426909973,1783005042000,-154.0,0.00029,4]
[426909981,1783005042000,-218.0,0.00029,2]
[426909988,1783005042000,-2000.0,0.00029024,4]
[426910149,1783005043000,-500.0,0.00030136,2]
[426910148,1783005043000,-500.0,0.00030136,2]
[426910144,1783005043000,-500.0,0.00030136,2]
[426910146,1783005043000,-500.0,0.00030136,2]
[426910147,1783005043000,-500.0,0.00030136,2]
[426910134,1783005043000,-280.45427802,0.00030116,2]
[426910130,1783005043000,-215.97757532,0.000301,7]
[426910132,1783005043000,-200.0,0.0003011,2]
[426910141,1783005043000,-500.0,0.00030136,2]
[426910143,1783005043000,-500.0,0.00030136,2]
[426910128,1783005043000,-158.63,0.000301,7]
[426910139,1783005043000,-500.0,0.00030136,2]
[426910136,1783005043000,-100000.0,0.00030136,30]
[426910155,1783005043000,-500.0,0.00030136,2]
[426910181,1783005043000,-185.67,0.00030137,2]
[426910161,1783005043000,-500.0,0.00030136,2]